[Event "17th Delhi GM Open 2019-B"]
[Site "Delhi"]
[Date "2019.01.09"]
[Round "1"]
[White "Smeeru, Thakur"]
[Black "Yung David"]
[Result "1-0"]
[ECO "B40"]
[WhiteElo "1894"]
[BlackElo "1465"]
[Annotator "NA RC"]
[PlyCount "112"]
[EventDate "2019.01.09"]
[EventType "swiss"]
[EventCountry "IND"]
[SourceTitle "playchess.com"]
[Source "ChessBase"]
[SourceQuality "1"]
[TimeControl "3600+30"]

1. e4 {[%emt 0:00:00]} e6 2. Nf3 {[%emt 0:00:00]} c5 {[%emt 0:00:00]} 3. g3 {[%emt 0:00:00]} Nf6 {[%emt 0:00:00]} 4. d3 {[%emt 0:00:00]} Nc6 {[%emt 0:00:00]} 5. Bg2 {[%emt 0:00:00]} Be7 {[%emt 0:00:00]} 6. O-O {[%emt 0:00:00]} O-O {[%emt 0:00:00]} 7. Re1 {[%emt 0:00:00]} e5 {[%emt 0:00:00] B40: Sicilian: 2...e6, Unusual lines} (7... d6 8. Nbd2 Bd7 9. c3 Ne5 10. Nxe5 dxe5 11. Nc4 Qc7 12. f4 exf4 13. Bxf4 Qd8 14. a4 Bc6 15. Ne5 Be8 16. a5 Rc8 17. Qb3 {0-1 (51) Ponomariov,R (2714)-Wang,Y (2720) Beijing 2014}) 8. Nbd2 {[%emt 0:00:00]} d6 {[%emt 0:00:00]} 9. Nc4 {[%emt 0:00:00]} h6 {[%emt 0:00:00]} 10. Ne3 {[%emt 0:00:00]} Bg4 $146 {[%emt 0:00:00]} ({Predecessor:} 10... Re8 11. Nh4 Bf8 12. c4 a6 13. Bd2 b5 14. Bc3 Nd4 15. b3 Rb8 16. Qd2 {0-1 (36) Pranav,A (2106)-Harsha,B (2451) Mumbai 2017}) 11. Nxg4 {[%emt 0:00:00]} Nxg4 {[%emt 0:00:00]} 12. h3 {[%emt 0:00:00]} Nf6 {[%emt 0:00:00]} 13. Nh4 {[%emt 0:00:00]} Re8 {[%emt 0:00:00]} 14. Nf5 {[%emt 0:00:00]} Bf8 {[%emt 0:00:00]} 15. c3 {[%emt 0:00:00]} Kh7 {[%emt 0:00:00]} 16. Qb3 {[%emt 0:00:00]} Qc7 {[%emt 0:00:00]} 17. Bd2 {[%emt 0:00:00]} g6 {[%emt 0:00:00]} 18. Ne3 {[%emt 0:00:00]} Nd8 {[%emt 0:00:00]} 19. Rac1 {[%emt 0:00:00]} Ne6 {[%emt 0:00:00]} 20. Rf1 {[%emt 0:00:00]} Rac8 {[%emt 0:00:00]} 21. f4 {[%emt 0:00:00]} exf4 {[%emt 0:00:13]} 22. gxf4 {[%emt 0:00:00]} Bg7 {[%emt 0:03:23]} 23. Rf2 {[%emt 0:00:00]} b5 {[%emt 0:07:02]} 24. Rcf1 {[%emt 0:02:35]} Nf8 {[%emt 0:00:45]} 25. Bc1 {[%emt 0:15:09]} a6 {[%emt 0:04:58]} 26. Qd1 {[%emt 0:00:03]} c4 {[%emt 0:02:07]} 27. f5 {[%emt 0:01:57]} g5 {[%emt 0:00:11]} 28. d4 {[%emt 0:02:45]} N8d7 {[%emt 0:01:19]} 29. Qc2 {[%emt 0:01:03]} Kg8 {[%emt 0:00:51]} 30. Ng4 {[%emt 0:01:01]} Nxg4 {[%emt 0:00:11]} 31. hxg4 {[%emt 0:00:08]} Nf6 {[%emt 0:00:01]} 32. Bf3 {[%emt 0:02:20]} a5 {[%emt 0:00:24]} 33. Re2 {[%emt 0:01:53]} b4 {[%emt 0:00:51]} 34. Bd2 {[%emt 0:00:05]} Qb6 {[%emt 0:00:22]} 35. Be3 {[%emt 0:01:28]} Qb5 {[%emt 0:00:47]} 36. Bf2 {[%emt 0:00:28]} b3 {[%emt 0:00:31]} 37. axb3 {[%emt 0:00:01]} cxb3 {[%emt 0:01:24]} 38. Qd2 {[%emt 0:00:18]} Rc7 {[%emt 0:00:32]} 39. Bg3 {[%emt 0:01:27]} Rd7 {[%emt 0:00:25]} 40. Rfe1 {[%emt 0:02:38]} a4 {[%emt 0:00:26]} 41. Qc1 {[%emt 0:02:39]} Bf8 {[%emt 0:01:48]} 42. e5 {[%emt 0:02:30]} dxe5 {[%emt 0:00:00]} 43. dxe5 {[%emt 0:01:47]} Rde7 {[%emt 0:00:22]} 44. c4 {[%emt 0:02:01]} Qb4 {[%emt 0:00:04]} (44... Qa6 $142 45. Bf2 (45. exf6 Rxe2 46. Rxe2 Rxe2 $18) 45... Nd7) 45. exf6 $2 {[%emt 0:00:23]} ({Better is} 45. Kg2 $18) 45... Rxe2 {[%emt 0:00:24]} 46. Rxe2 {[%emt 0:00:01]} Rxe2 {[%emt 0:00:01]} 47. Bxe2 {[%emt 0:00:07]} a3 {[%emt 0:01:24]} 48. bxa3 {[%emt 0:00:00]} b2 {[%emt 0:00:00]} 49. Qb1 {[%emt 0:00:27]} Qc3 {[%emt 0:00:37]} 50. Kg2 {[%emt 0:02:55]} Bxa3 {[%emt 0:00:01]} 51. Qd3 {[%emt 0:02:00]} Qxf6 {[%emt 0:00:46]} 52. Qc2 {[%emt 0:00:08]} Qb6 {[%emt 0:00:40]} 53. Bd3 {[%emt 0:00:15]} Qd4 $2 {[%emt 0:01:21]} (53... Bc5 54. Be4 Bd4) 54. Qe2 {[%emt 0:00:50]} Bc5 {[%emt 0:00:05]} 55. Qe8+ {[%emt 0:00:44]} Bf8 {[%emt 0:02:12]} 56. Qe4 {[%emt 0:00:01]} Qc3 {[%emt 0:00:08]} 1-0

[Event "17th Delhi GM Open 2019-B"]
[Site "Delhi"]
[Date "2019.01.09"]
[Round "1"]
[White "Sisodia Tejsingh"]
[Black "Avinash, Chandra"]
[Result "0-1"]
[ECO "D38"]
[WhiteElo "1866"]
[BlackElo "1460"]
[Annotator "NA RC"]
[PlyCount "172"]
[EventDate "2019.01.09"]
[EventType "swiss"]
[EventCountry "IND"]
[SourceTitle "playchess.com"]
[Source "ChessBase"]
[SourceQuality "1"]
[TimeControl "3600+30"]

1. d4 {[%emt 0:00:00]} d5 {[%emt 0:00:00]} 2. c4 {[%emt 0:00:00]} e6 {[%emt 0:00:00]} 3. Nc3 {[%emt 0:00:00]} Bb4 {[%emt 0:00:00]} 4. Nf3 {[%emt 0:00:00]} Nf6 {[%emt 0:00:00]} 5. Bg5 {[%emt 0:00:00]} h6 {[%emt 0:00:00]} 6. Bh4 {[%emt 0:00:00]} c6 {[%emt 0:00:00]} 7. Bxf6 {[%emt 0:00:00] D38: Queen's Gambit Declined: Ragozin Defence (4 Nf3 Bb4)} (7. Qb3 a5 8. e3 Nbd7 9. cxd5 exd5 10. Bd3 O-O 11. O-O Re8 12. Rac1 Nf8 13. Ne5 g5 14. Bg3 Nh5 {0-1 (49) Kaspi,A (2434)-Bortnyk,O (2585) Jerusalem 2016}) 7... Qxf6 {[%emt 0:00:00]} 8. e3 {[%emt 0:00:00]} Nd7 {[%emt 0:00:00]} 9. a3 {[%emt 0:00:00]} Bxc3+ {[%emt 0:00:00]} 10. bxc3 {[%emt 0:00:00]} e5 $146 {[%emt 0:00:00]} ({Predecessor:} 10... c5 11. cxd5 exd5 12. Be2 c4 13. Qc2 a5 14. O-O O-O {1-0 (55) Da Silva,A (1503)-Flesch,G (1202) Curitiba 2017}) 11. cxd5 {[%emt 0:00:00]} cxd5 {[%emt 0:00:00]} 12. dxe5 {[%emt 0:02:32]} Nxe5 {[%emt 0:00:00]} 13. Nxe5 {[%emt 0:01:53]} Qxe5 {[%emt 0:00:02]} 14. Bb5+ {[%emt 0:00:15]} Ke7 {[%emt 0:01:02]} 15. Qb3 {[%emt 0:06:20]} Rd8 {[%emt 0:02:18]} 16. O-O {[%emt 0:01:37]} Kf8 {[%emt 0:02:34]} 17. Rad1 {[%emt 0:00:44]} Be6 {[%emt 0:00:41]} 18. Rd4 {[%emt 0:00:34]} Rac8 {[%emt 0:01:29]} 19. Rfd1 {[%emt 0:01:12]} Qc7 {[%emt 0:01:14]} 20. Rc1 {[%emt 0:05:36]} Kg8 {[%emt 0:01:06]} 21. h3 {[%emt 0:00:22]} Rd6 {[%emt 0:03:02]} 22. Be2 {[%emt 0:00:54]} Rc6 {[%emt 0:01:48]} 23. Bf3 {[%emt 0:01:24]} Rxc3 {[%emt 0:04:56]} 24. Rxc3 {[%emt 0:00:14]} Qxc3 {[%emt 0:00:09]} 25. Qb4 {[%emt 0:07:56]} Qxb4 {[%emt 0:02:55]} 26. axb4 {[%emt 0:00:05]} Rc4 {[%emt 0:00:18]} 27. b5 {[%emt 0:02:50]} Rxd4 {[%emt 0:01:07]} 28. exd4 {[%emt 0:00:05]} Kf8 {[%emt 0:00:13]} 29. Kf1 {[%emt 0:00:16]} Ke7 {[%emt 0:01:17]} 30. Ke1 {[%emt 0:00:08]} Kd6 {[%emt 0:00:14]} 31. Kd2 {[%emt 0:00:07]} Kc7 {[%emt 0:05:54]} 32. Kc3 {[%emt 0:00:05]} Kb6 {[%emt 0:00:10]} 33. Kb4 {[%emt 0:00:41]} f6 {[%emt 0:00:01]} 34. h4 {[%emt 0:00:38]} g5 {[%emt 0:00:28]} 35. hxg5 {[%emt 0:00:11]} hxg5 {[%emt 0:00:46]} 36. g3 {[%emt 0:00:01]} Bd7 {[%emt 0:02:05]} 37. Bxd5 $2 {[%emt 0:03:26]} (37. Be2 $17) 37... Bxb5 {[%emt 0:00:13]} 38. Ba2 {[%emt 0:01:50]} a5+ {[%emt 0:00:12]} 39. Kc3 {[%emt 0:00:25]} Kc7 {[%emt 0:00:20]} 40. d5 {[%emt 0:00:12]} Kd6 {[%emt 0:00:17]} 41. Kd4 {[%emt 0:00:02]} Bd7 {[%emt 0:00:29]} 42. f4 {[%emt 0:00:37]} gxf4 {[%emt 0:00:11]} 43. gxf4 {[%emt 0:00:23]} b5 {[%emt 0:00:01]} 44. Bb3 {[%emt 0:00:39]} Be8 {[%emt 0:00:59]} 45. Bc2 {[%emt 0:01:20]} a4 {[%emt 0:00:23]} 46. Be4 {[%emt 0:02:54]} Bf7 {[%emt 0:03:21]} 47. Bd3 {[%emt 0:00:27]} Bxd5 $2 {[%emt 0:01:45]} (47... a3 48. Kc3 b4+ 49. Kc2 Kxd5) 48. Bxb5 {[%emt 0:00:09]} a3 {[%emt 0:00:04]} 49. Kc3 {[%emt 0:00:32]} Kc5 {[%emt 0:00:01]} 50. Bd3 {[%emt 0:00:16]} a2 {[%emt 0:00:18]} 51. Kb2 {[%emt 0:00:01]} Kd4 {[%emt 0:00:46]} 52. Bf5 {[%emt 0:01:11]} (52. Bc2 $17) 52... Ke3 {[%emt 0:01:40]} 53. Bg6 {[%emt 0:00:02]} Kf3 {[%emt 0:00:35]} 54. f5 {[%emt 0:00:01]} Kf4 $2 {[%emt 0:00:02]} 55. Bh7 $1 {[%emt 0:00:03]} Kg5 {[%emt 0:00:16]} 56. Bg6 {[%emt 0:00:00]} Bg8 {[%emt 0:00:46]} 57. Ka1 {[%emt 0:00:05]} Kf4 {[%emt 0:00:18]} 58. Kb2 {[%emt 0:00:36] [#]} Bd5 {[%emt 0:00:02]} (58... Bb3 $1 $17 {[%mdl 512]} 59. Ka1 (59. Kxb3 a1=Q) 59... Kg5) 59. Bh7 {[%emt 0:00:02]} Be4 {[%emt 0:04:10]} 60. Kxa2 {[%emt 0:00:11]} Bxf5 {[%emt 0:00:08]} 61. Kb2 $2 {[%emt 0:00:54]} (61. Bg8 $15) 61... Ke3 {[%emt 0:00:42]} 62. Bg8 {[%emt 0:00:01]} Bd3 {[%emt 0:00:03]} 63. Be6 {[%emt 0:00:01]} Kd4 {[%emt 0:00:45]} 64. Kc1 {[%emt 0:00:02]} Ke5 {[%emt 0:00:22]} 65. Bc8 {[%emt 0:00:27]} Bf5 {[%emt 0:00:09]} 66. Bb7 {[%emt 0:00:12]} Be6 {[%emt 0:00:02]} 67. Kd2 {[%emt 0:00:44]} Kf4 {[%emt 0:00:01]} 68. Ke2 {[%emt 0:00:25]} Kg3 {[%emt 0:00:01]} 69. Kf1 {[%emt 0:00:17]} (69. Be4 $1 $11) 69... f5 {[%emt 0:00:14]} 70. Bc6 {[%emt 0:00:44]} f4 {[%emt 0:00:06]} 71. Be4 {[%emt 0:00:21]} Bg4 {[%emt 0:00:07]} 72. Kg1 {[%emt 0:00:34]} Bf3 {[%emt 0:00:02]} 73. Bf5 $2 {[%emt 0:00:25]} (73. Bg6 $17) 73... Bc6 {[%emt 0:00:12]} 74. Bd3 {[%emt 0:00:42] [#]} f3 $1 {[%emt 0:00:00]} 75. Kf1 {[%emt 0:01:52]} Bd7 {[%emt 0:01:46]} 76. Ke1 {[%emt 0:01:11]} Bg4 {[%emt 0:00:12]} 77. Bc4 {[%emt 0:02:19]} f2+ {[%emt 0:00:42]} 78. Kd2 {[%emt 0:00:10]} Kh2 {[%emt 0:00:08]} 79. Ke3 {[%emt 0:00:34]} Kg1 {[%emt 0:00:11]} 80. Kd2 {[%emt 0:00:05]} Kh2 {[%emt 0:00:10]} 81. Ke3 {[%emt 0:00:04]} Kg1 {[%emt 0:00:02]} 82. Bd3 {[%emt 0:00:41]} Bh3 {[%emt 0:00:08]} 83. Kf3 {[%emt 0:04:56]} Bf1 {[%emt 0:00:31]} 84. Bf5 {[%emt 0:00:17]} Bc4 {[%emt 0:00:32]} 85. Bh3 {[%emt 0:00:37]} Be6 {[%emt 0:00:01]} 86. Bg2 {[%emt 0:01:39]} Bf7 0-1

[Event "17th Delhi GM Open 2019-B"]
[Site "Delhi"]
[Date "2019.01.09"]
[Round "1"]
[White "Chittari Abhishek Varma"]
[Black "Daaksh Jain"]
[Result "1-0"]
[ECO "A80"]
[WhiteElo "1855"]
[BlackElo "1458"]
[Annotator "NA RC"]
[PlyCount "64"]
[EventDate "2019.01.09"]
[EventType "swiss"]
[EventCountry "IND"]
[SourceTitle "playchess.com"]
[Source "ChessBase"]
[SourceQuality "1"]
[TimeControl "3600+30"]

1. d4 {[%emt 0:00:00]} f5 {[%emt 0:00:00]} 2. Bg5 {[%emt 0:00:00]} d6 {[%emt 0:00:00]} 3. Nc3 {[%emt 0:00:00]} h6 {[%emt 0:00:00]} 4. Bc1 {[%emt 0:00:00]} Nf6 {[%emt 0:00:00]} 5. e4 {[%emt 0:00:00]} Nc6 {[%emt 0:00:00]} 6. d5 {[%emt 0:00:00]} Ne5 {[%emt 0:00:00]} 7. f4 {[%emt 0:00:00]} Nf7 {[%emt 0:00:00]} 8. Bb5+ {[%emt 0:00:00]} Bd7 {[%emt 0:00:00]} 9. exf5 {[%emt 0:00:00]} Bxb5 {[%emt 0:00:00]} 10. Nxb5 {[%emt 0:00:00]} Qd7 {[%emt 0:00:00]} 11. Qd3 {[%emt 0:00:00]} Nxd5 {[%emt 0:03:59]} 12. c4 {[%emt 0:00:00]} Nb4 {[%emt 0:02:39]} 13. Qb3 {[%emt 0:06:55]} c5 {[%emt 0:00:01]} 14. a3 {[%emt 0:02:11]} Nc6 {[%emt 0:00:01]} 15. Nf3 {[%emt 0:03:54]} O-O-O {[%emt 0:00:01]} 16. O-O {[%emt 0:03:52]} Qxf5 {[%emt 0:04:26]} 17. Qa4 {[%emt 0:00:23]} a6 {[%emt 0:04:09]} 18. Nc3 {[%emt 0:00:07]} Qd7 {[%emt 0:00:41]} 19. Nd5 {[%emt 0:00:53]} Kb8 {[%emt 0:00:31]} 20. b4 {[%emt 0:01:43]} Nd4 {[%emt 0:04:25]} 21. Qd1 {[%emt 0:09:32]} e6 {[%emt 0:04:19]} 22. Ne3 {[%emt 0:00:20]} Nxf3+ {[%emt 0:03:30]} 23. Qxf3 {[%emt 0:00:01]} g5 {[%emt 0:00:21]} 24. Bb2 {[%emt 0:02:13]} Rg8 {[%emt 0:00:01]} 25. Rfd1 {[%emt 0:03:02]} Qc7 {[%emt 0:01:02]} 26. f5 {[%emt 0:00:45]} exf5 {[%emt 0:00:53]} 27. Bf6 {[%emt 0:01:15]} Be7 {[%emt 0:00:00]} 28. Nd5 {[%emt 0:00:48]} Qd7 {[%emt 0:00:01]} 29. Bxe7 {[%emt 0:00:57]} Ne5 {[%emt 0:00:00]} 30. Qb3 {[%emt 0:01:38]} Rde8 {[%emt 0:00:00]} 31. Bf6 {[%emt 0:01:56]} Ng4 {[%emt 0:00:04]} 32. h3 {[%emt 0:00:01]} Ne5 {[%emt 0:00:01]} 1-0

[Event "17th Delhi GM Open 2019-B"]
[Site "Delhi"]
[Date "2019.01.09"]
[Round "1"]
[White "Mohan, Singh Dewat"]
[Black "Koustav Chakraborty"]
[Result "0-1"]
[ECO "D60"]
[WhiteElo "1465"]
[BlackElo "1898"]
[Annotator "NA RC"]
[PlyCount "92"]
[EventDate "2019.01.09"]
[EventType "swiss"]
[EventCountry "IND"]
[SourceTitle "playchess.com"]
[Source "ChessBase"]
[SourceQuality "1"]
[TimeControl "3600+30"]

1. d4 {[%emt 0:00:00]} d5 {[%emt 0:00:00]} 2. c4 {[%emt 0:00:00]} e6 {[%emt 0:00:00]} 3. Nf3 {[%emt 0:00:00]} Nf6 {[%emt 0:00:00]} 4. Bg5 {[%emt 0:00:00]} Nbd7 {[%emt 0:00:00]} 5. e3 {[%emt 0:00:00]} Be7 {[%emt 0:00:00]} 6. Nc3 {[%emt 0:00:00]} O-O {[%emt 0:00:00]} 7. Bd3 {[%emt 0:00:00]} c6 {[%emt 0:00:00]} 8. O-O {[%emt 0:00:00]} dxc4 {[%emt 0:00:00]} 9. Bxc4 {[%emt 0:00:00]} Nd5 {[%emt 0:00:00]} 10. Bxe7 {[%emt 0:00:00]} Qxe7 {[%emt 0:00:00]} 11. e4 {[%emt 0:00:00]} N5b6 {[%emt 0:00:00]} 12. Bb3 {[%emt 0:00:00]} e5 {[%emt 0:00:00]} 13. Rc1 {[%emt 0:00:00] D60: Queen's Gambit Declined: Classical: Unusual White 7th moves} (13. Qe2 exd4 14. Nxd4 Nc5 15. Bc2 Be6 16. Rfe1 Rad8 17. Rad1 g6 18. h3 Qg5 19. b4 Bc4 20. Qg4 Qxg4 21. hxg4 {1-0 (44) Khalifman,A (2617)-Burchardt,B (2182) Hersonissos 2017}) 13... Rd8 {[%emt 0:00:00]} 14. d5 {[%emt 0:00:00]} Nc5 {[%emt 0:00:00]} 15. Bc2 $146 {[%emt 0:00:00]} ({Predecessor:} 15. Re1 Bg4 16. h3 Nxb3 17. axb3 Bh5 18. Na4 Nxa4 19. bxa4 cxd5 20. exd5 {0-1 (68) Carrero,J-Nayes,F Bratislava 1993}) 15... Bg4 {[%emt 0:00:00]} 16. h3 {[%emt 0:00:56]} Bh5 {[%emt 0:00:00]} 17. g4 {[%emt 0:08:43]} Bg6 {[%emt 0:00:00]} 18. Qe2 {[%emt 0:03:03]} cxd5 {[%emt 0:00:00]} 19. exd5 {[%emt 0:03:34]} e4 {[%emt 0:00:00]} 20. Rcd1 {[%emt 0:01:31]} Re8 {[%emt 0:03:21]} 21. Rfe1 {[%emt 0:03:22]} Rad8 {[%emt 0:18:49]} 22. Nd4 {[%emt 0:04:22]} Qh4 {[%emt 0:04:09]} 23. Kh2 {[%emt 0:01:32]} Nxd5 {[%emt 0:02:52]} 24. Nxd5 {[%emt 0:01:08]} Rxd5 {[%emt 0:00:07]} 25. Nf5 {[%emt 0:01:19]} Rxf5 {[%emt 0:04:16]} 26. gxf5 {[%emt 0:00:15]} Qf4+ {[%emt 0:00:24]} 27. Kg2 {[%emt 0:01:23]} Qxf5 {[%emt 0:00:19]} 28. Qg4 {[%emt 0:01:29]} Qe5 {[%emt 0:00:12]} 29. Rb1 {[%emt 0:05:21]} Ne6 {[%emt 0:01:24]} 30. Qg3 {[%emt 0:00:14]} Nf4+ {[%emt 0:00:41]} 31. Kh2 {[%emt 0:00:15]} h5 {[%emt 0:00:33]} 32. Re3 {[%emt 0:00:55]} Qf6 {[%emt 0:02:24]} 33. h4 {[%emt 0:00:25]} Nd5 {[%emt 0:00:23]} 34. Ree1 {[%emt 0:00:45] [#]} (34. Re2 $17) 34... Nb4 $1 {[%emt 0:01:05]} 35. Bb3 {[%emt 0:01:11]} (35. Rbc1 {was necessary.}) 35... Nd3 {[%emt 0:00:21]} 36. Rf1 {[%emt 0:01:10]} Ne5 {[%emt 0:00:23]} 37. Kg2 {[%emt 0:00:35]} Nf3 {[%emt 0:02:02]} 38. Rh1 {[%emt 0:00:14]} e3 {[%emt 0:00:44]} 39. Qxf3 {[%emt 0:01:14]} Be4 {[%emt 0:00:04]} 40. Qxe4 {[%emt 0:00:07]} Rxe4 {[%emt 0:00:03]} (40... Qxf2+ $142 41. Kh3 Rxe4 42. Bxf7+ Kxf7 43. Rh2 Rxh4#) 41. f3 {[%emt 0:00:25]} Rxh4 {[%emt 0:00:06]} 42. Rxh4 {[%emt 0:00:39]} Qxh4 {[%emt 0:00:06]} 43. Rd1 {[%emt 0:00:16]} Qf2+ {[%emt 0:00:09]} 44. Kh1 {[%emt 0:00:04]} Qxf3+ {[%emt 0:00:08]} 45. Kg1 {[%emt 0:00:03]} e2 {[%emt 0:00:10]} 46. Rd8+ {[%emt 0:00:13]} Kh7 {[%emt 0:00:03]} 0-1

[Event "17th Delhi GM Open 2019-B"]
[Site "Delhi"]
[Date "2019.01.09"]
[Round "1"]
[White "Anjishnu Mondal"]
[Black "Farzad, Khusraw"]
[Result "0-1"]
[ECO "B84"]
[WhiteElo "1464"]
[BlackElo "1877"]
[Annotator "NA RC"]
[PlyCount "88"]
[EventDate "2019.01.09"]
[EventType "swiss"]
[EventCountry "IND"]
[SourceTitle "playchess.com"]
[Source "ChessBase"]
[SourceQuality "1"]
[TimeControl "3600+30"]

1. e4 {[%emt 0:00:00]} c5 {[%emt 0:00:00]} 2. Nf3 {[%emt 0:00:00]} d6 {[%emt 0:00:00]} 3. d4 {[%emt 0:00:00]} cxd4 {[%emt 0:00:00]} 4. Nxd4 {[%emt 0:00:00]} Nf6 {[%emt 0:00:00]} 5. Nc3 {[%emt 0:00:00]} a6 {[%emt 0:00:00]} 6. Be3 {[%emt 0:00:00]} Ng4 {[%emt 0:00:00]} 7. Bc1 {[%emt 0:00:00]} Nf6 {[%emt 0:00:00]} 8. Be2 {[%emt 0:00:00]} e6 {[%emt 0:00:00]} 9. Be3 {[%emt 0:00:00]} Be7 {[%emt 0:00:00]} 10. O-O {[%emt 0:00:00]} b5 {[%emt 0:00:00]} 11. a3 {[%emt 0:00:00]} Bb7 {[%emt 0:00:00]} 12. f3 {[%emt 0:00:00]} O-O {[%emt 0:00:00]} 13. Qe1 {[%emt 0:00:00]} Nbd7 {[%emt 0:00:00]} 14. Rd1 {[%emt 0:00:00]} Qc7 {[%emt 0:00:00]} 15. Qg3 {[%emt 0:00:00]} Ne5 {[%emt 0:00:00]} 16. f4 {[%emt 0:00:00]} Nc4 {[%emt 0:00:00]} 17. Bxc4 {[%emt 0:00:00]} Qxc4 {[%emt 0:00:00]} 18. e5 {[%emt 0:00:00]} dxe5 {[%emt 0:08:19]} 19. fxe5 {[%emt 0:00:00]} Ne4 {[%emt 0:00:01]} 20. Nxe4 {[%emt 0:00:00]} Bxe4 {[%emt 0:00:02]} 21. Bh6 {[%emt 0:00:00]} Bg6 {[%emt 0:00:00]} 22. Be3 {[%emt 0:00:00]} Rad8 {[%emt 0:04:49]} 23. c3 {[%emt 0:00:09]} Rd5 {[%emt 0:01:37]} 24. Kh1 {[%emt 0:01:32]} Rfd8 {[%emt 0:02:16]} 25. Bg5 {[%emt 0:00:02]} Bxg5 {[%emt 0:02:35]} 26. Qxg5 {[%emt 0:00:03]} f6 {[%emt 0:01:48]} 27. Qc1 {[%emt 0:00:02]} Rxe5 {[%emt 0:02:42]} 28. b3 {[%emt 0:01:18]} Qc8 {[%emt 0:03:22]} 29. Qb2 {[%emt 0:05:00]} Red5 {[%emt 0:01:43]} 30. Rc1 {[%emt 0:01:36]} e5 {[%emt 0:01:06]} 31. Nf3 {[%emt 0:00:16]} Qb7 {[%emt 0:03:29]} 32. b4 {[%emt 0:00:44]} Bd3 {[%emt 0:00:53]} 33. Rfd1 {[%emt 0:00:00]} Bc4 {[%emt 0:00:00]} 34. Re1 {[%emt 0:00:31]} Rd3 {[%emt 0:01:00]} 35. Qf2 {[%emt 0:00:29]} Qc6 {[%emt 0:01:53]} 36. Re3 {[%emt 0:00:00]} R3d6 {[%emt 0:05:18]} 37. Rce1 {[%emt 0:00:26]} Bd5 {[%emt 0:02:40]} 38. Qg3 {[%emt 0:01:13]} Bxf3 {[%emt 0:01:06]} 39. gxf3 {[%emt 0:00:45]} Rd1 {[%emt 0:00:02]} 40. Qg1 {[%emt 0:01:02]} R1d3 {[%emt 0:01:20]} 41. Rc1 {[%emt 0:00:17]} Qb6 {[%emt 0:01:32]} 42. Rce1 {[%emt 0:00:27]} Rxe3 {[%emt 0:01:43]} 43. Rxe3 {[%emt 0:00:01]} Rd2 {[%emt 0:00:02]} 44. Qe1 {[%emt 0:00:17]} Qd6 {[%emt 0:02:18]} 0-1

[Event "17th Delhi GM Open 2019-B"]
[Site "Delhi"]
[Date "2019.01.09"]
[Round "1"]
[White "Varshita Jain"]
[Black "Heikrujam Jacky Singh"]
[Result "0-1"]
[ECO "B40"]
[WhiteElo "1461"]
[BlackElo "1870"]
[Annotator "NA RC"]
[PlyCount "50"]
[EventDate "2019.01.09"]
[EventType "swiss"]
[EventCountry "IND"]
[SourceTitle "playchess.com"]
[Source "ChessBase"]
[SourceQuality "1"]
[TimeControl "3600+30"]

1. e4 {[%emt 0:00:00]} c5 {[%emt 0:00:00]} 2. Nf3 {[%emt 0:00:00]} e6 {[%emt 0:00:00]} 3. d4 {[%emt 0:00:00]} cxd4 {[%emt 0:00:00]} 4. Nxd4 {[%emt 0:00:00]} Bc5 {[%emt 0:00:00]} 5. Nb3 {[%emt 0:00:00]} Bb6 {[%emt 0:00:00]} 6. Be2 {[%emt 0:00:00]} Ne7 {[%emt 0:00:00]} 7. Nc3 {[%emt 0:00:00]} O-O {[%emt 0:00:00]} 8. O-O {[%emt 0:00:00]} f5 {[%emt 0:00:00]} 9. Bg5 {[%emt 0:00:00]} Nbc6 {[%emt 0:00:00]} 10. exf5 {[%emt 0:00:00]} Rxf5 {[%emt 0:00:00]} 11. Bh4 {[%emt 0:00:00]} d5 {[%emt 0:00:00]} 12. Bg4 {[%emt 0:00:00]} Rf8 {[%emt 0:00:00]} 13. Qe2 {[%emt 0:00:00]} Qd7 {[%emt 0:00:00]} 14. Rae1 {[%emt 0:00:00]} Nf5 {[%emt 0:00:11]} 15. Bg3 {[%emt 0:04:03]} Nxg3 {[%emt 0:03:14]} 16. hxg3 {[%emt 0:00:17]} Rf6 {[%emt 0:00:16]} 17. Rd1 {[%emt 0:07:01]} Qf7 {[%emt 0:03:55]} 18. Na4 {[%emt 0:03:54]} Bc7 {[%emt 0:03:53]} 19. Nac5 {[%emt 0:00:39]} b6 {[%emt 0:06:36]} 20. Nd3 {[%emt 0:02:09]} e5 {[%emt 0:03:56]} 21. f4 {[%emt 0:07:47]} Bxg4 {[%emt 0:07:31]} 22. Qxg4 {[%emt 0:00:06]} Rf8 {[%emt 0:00:48]} 23. Rde1 {[%emt 0:04:00]} b5 {[%emt 0:03:26]} 24. f5 {[%emt 0:03:59]} Bb6+ {[%emt 0:00:37]} 25. Nbc5 {[%emt 0:00:22]} e4 {[%emt 0:00:54]} 0-1